Cogmind - Beta 14 @@@ ROGUE MODE // 2024.10.15 @ 15:07:30 Player: Struisvogel Result: Self-destructed Performance ------------- Evolutions (1) 500 Regions Visited (2) 400 Robots Destroyed (9) 45 Value Destroyed (154) 154 Prototype IDs (0) 0 Alien Tech Used (0) 0 Bonus (0) 0 TOTAL SCORE: 1099 Bonus ------- None Cogmind --------- Core Integrity 382/400 Matter 260/300 Energy 90/100 System Corruption 0% Temperature Cool (0) Movement Flying (117) Ox1 Location -9/Materials Parts ------- > --- POWER (1) -------- (None) > --- PROPULSION (3) --- Flight Unit Flight Unit > --- UTILITY (3) ------ Small Storage Unit ECM Suite > --- WEAPON (2) ------- Light Assault Rifle Datajack > --- INVENTORY (8) ---- Ion Engine Aluminum Leg Aluminum Leg Flight Unit Flight Unit Flight Unit Weapon Shielding Light Assault Rifle Peak State ------------ > --- POWER ------------ Ion Engine > --- PROPULSION ------- Compact Wheel Compact Wheel > --- UTILITY ---------- Small Storage Unit Weapon Shielding > --- WEAPON ----------- EM Pulse Gun EM Pulse Gun > --- INVENTORY -------- Ion Engine Light Treads Light Treads Aluminum Leg Aluminum Leg Flight Unit Small Laser [Rating: 7] Favorites ----------- Power Ion Engine Engine Ion Engine Propulsion Compact Wheel Treads Light Treads Wheel Compact Wheel Flight Unit Flight Unit Utility Small Storage Unit Device ECM Suite Storage Small Storage Unit Protection Weapon Shielding Weapon EM Pulse Gun Energy Gun EM Pulse Gun Ballistic Gun Light Assault Rifle Special Melee Weapon Datajack Build | -11 -10 -9 ------- Run | Yrd Mat Mat Slots Evolved 2 | . . 2 Power . | . . . Propulsion 1 | . . 1 Utility 1 | . . 1 Weapon . | . . . Parts Attached 17 | 6 11 . Power 2 | 1 1 . Engine 2 | 1 1 . Core . | . . . Reactor . | . . . Propulsion 6 | 2 4 . Treads 2 | . 2 . Leg . | . . . Wheel 2 | 2 . . Hover . | . . . Flight 2 | . 2 . Utility 3 | 1 2 . Device 1 | . 1 . Storage 1 | 1 . . Processor . | . . . Hackware . | . . . Protection 1 | . 1 . Artifact . | . . . Weapon 6 | 2 4 . Energy Gun 4 | 2 2 . Energy Cannon . | . . . Ballistic Gun 1 | . 1 . Ballistic Cannon . | . . . Launcher . | . . . Special Weapon . | . . . Impact Weapon . | . . . Slashing Weapon . | . . . Piercing Weapon . | . . . Special Melee Weapon 1 | . 1 . Unidentified Prototypes . | . . . Parts Lost 5 | . 4 1 Power 1 | . . 1 Propulsion 2 | . 2 . Utility . | . . . Weapon 2 | . 2 . Highest Loss Streak 3 | . 3 1 To Critical Strikes . | . . . Average Slot Usage (%) 94 | . 96 77 Engine 13 | . 14 11 Treads 6 | . 7 . Wheel 9 | . 10 . Flight 10 | . 9 22 Device 4 | . 3 11 Storage 13 | . 14 11 Protection 8 | . 9 . Energy Gun 16 | . 18 . Ballistic Gun 5 | . 4 11 Special Melee Weapon 4 | . 3 11 Peak Build Rating 7 | 6 7 7 Average Rating 6 | 5 6 6 On Entrance 4 | . 6 7 Naked Turns . | . . . Heaviest Build 15 | 14 15 12 Greatest Support 40 | 32 40 8 Greatest Overweight (x) 1 | . 1 1 Average Overweight (x) . | . . 1 Largest Inventory Capacity 8 | 8 8 8 Average Capacity 7 | 7 8 8 Most Carried 8 | 6 8 8 Average Carried 6 | 3 7 8 Final Capacity 8 | 8 8 8 Final Carried 8 | 6 8 8 Class Distribution -------------------- 100% | Mutant Dominant Class ---------------- Mutant | -10/Materials Mutant | -9/Materials Resources | -11 -10 -9 ----------- Run | Yrd Mat Mat Matter Collected 317 | 189 128 . Remotely . | . . . Salvage Created 229 | . 229 . Parts 21 | . 21 . Haulers Intercepted . | . . . Recyclers Shooed . | . . . Parts Field Recycled . | . . . Retrieved Matter . | . . . Parts Self-Destructed . | . . . Prevented . | . . . Kills | -11 -10 -9 ------- Run | Yrd Mat Mat Combat Hostiles Destroyed 6 | . 6 . Guns 6 | . 6 . Classes Destroyed 5 | . 5 . Worker 1 | . 1 . Operator 1 | . 1 . Watcher 1 | . 1 . Swarmer 4 | . 4 . Grunt 2 | . 2 . Best Kill Streak 4 | . 4 . Combat Bots Only 4 | . 4 . Max Kills in Single Turn 1 | . 1 . Gunslinging . | . . . Exploded . | . . . Melee . | . . . Uniques/NPCs Destroyed . | . . . Combat | -11 -10 -9 -------- Run | Yrd Mat Mat Hostile Shots Fired 58 | . 50 8 Missed 6 | . 3 3 Damage Taken 579 | . 498 81 Core 112 | . 94 18 Absorbed by Shields . | . . . Redirected to Shielding 45 | . 45 . Core Remaining (%) 81 | 100 62 . Volleys Fired 29 | . 27 2 Largest 2 | . 2 1 Hottest 80 | . 80 20 Shots Fired 43 | . 41 2 Gun 43 | . 41 2 Cannon . | . . . Launcher . | . . . Special . | . . . Kinetic 2 | . . 2 Thermal 21 | . 21 . Explosive . | . . . Electromagnetic 20 | . 20 . Robot Hit Streak 13 | . 13 6 Robot Miss Streak 3 | . 3 . Penetration Max . | . . . Secondary Targets . | . . . Shots Hit Robots 33 | . 29 4 Core Hits 12 | . 12 . Critical Kills . | . . . Critical Parts Destroyed . | . . . Critical Strikes . | . . . Melee Attacks 4 | . 2 2 Impact . | . . . Slashing . | . . . Piercing . | . . . Sneak Attacks 2 | . 2 . Combat Hostiles . | . . . Follow-up Attacks . | . . . Damage Inflicted 386 | . 367 19 Guns 386 | . 367 19 Cannons . | . . . Explosions . | . . . Melee . | . . . Ramming . | . . . Kinetic 19 | . . 19 Thermal 156 | . 156 . Explosive . | . . . Electromagnetic 211 | . 211 . Impact . | . . . Slashing . | . . . Piercing . | . . . Highest Corruption . | . . . Average Corruption . | . . . Corruption Purged . | . . . Corruption Blocked . | . . . Overload Shots . | . . . Overflow Damage . | . . . Projectiles . | . . . Explosions . | . . . Melee . | . . . Knockbacks . | . . . Impact . | . . . Kinetic . | . . . Secondary . | . . . Self-Inflicted Damage . | . . . Shots . | . . . Rammed . | . . . Targets Rammed . | . . . Kicked . | . . . Crushed . | . . . Highest Temperature 311 | . 311 . Average Temperature 134 | . 134 . Received Heat Transfer 180 | . 153 27 Siege Activations . | . . . Robots Corrupted . | . . . Combat Hostiles . | . . . Parts Fried 2 | . 2 . Impact Corruptions . | . . . Robots Melted . | . . . Combat Hostiles . | . . . Parts Melted 1 | . 1 . Heat Transferred 350 | . 350 . Parts Sabotaged . | . . . Parts Stolen . | . . . Parts Stripped . | . . . Power Chain Reactions . | . . . Alert | -11 -10 -9 ------- Run | Yrd Mat Mat Peak Influence 132 | . 132 70 Initial 55 | . . 55 Average 60 | . 68 57 Maximum Alert Level . | . . . Low Security (%) 100 | 100 100 100 Level 1 . | . . . Level 2 . | . . . Level 3 . | . . . Level 4 . | . . . Level 5 . | . . . High Security . | . . . Max Security . | . . . Squads Dispatched . | . . . Investigation . | . . . Extermination . | . . . Reinforcement . | . . . Assault . | . . . Garrison . | . . . Intercept . | . . . Searches Triggered . | . . . Construction Impeded . | . . . Haulers Reinforced . | . . . Active Scanning Responses . | . . . Cargo Convoy Interrupts . | . . . Stealth | -11 -10 -9 --------- Run | Yrd Mat Mat Distress Signals 2 | . 2 . Communications Jammed . | . . . Distress Signals . | . . . Times Spotted 15 | . 14 1 Peak Tracking Total 4 | . 4 1 Tactical Retreats 1 | . 1 . Traps | -11 -10 -9 ------- Run | Yrd Mat Mat Traps Triggered . | . . . Indirectly . | . . . Trap Hack Attempts . | . . . Triggered . | . . . Disarmed . | . . . Reprogrammed . | . . . Reused . | . . . Traps Extracted . | . . . Installed . | . . . Triggered . | . . . Objects Rigged 1 | . 1 . Machines | -11 -10 -9 ---------- Run | Yrd Mat Mat Machines Disabled . | . . . Max in Single Turn . | . . . Machines Repaired . | . . . Machines Dismantled . | . . . Machines Sabotaged . | . . . Overloaded Fab Kills . | . . . Hacking | -11 -10 -9 --------- Run | Yrd Mat Mat Machines Accessed 9 | . 7 2 Terminals 7 | . 6 1 Fabricators . | . . . Repair Stations 1 | . 1 . Recycling Units . | . . . Scanalyzers 1 | . . 1 Garrison Access . | . . . Total Hacks 16 | . 13 3 Successful 6 | . 5 1 Failed 10 | . 8 2 Catastrophic 1 | . 1 . Database Lockouts . | . . . Manual 18 | . 14 4 Terminals 14 | . 12 2 Fabricators . | . . . Repair Stations 1 | . 1 . Recycling Units . | . . . Scanalyzers 1 | . . 1 Garrison Access . | . . . Terminal Hacks . | . . . Fabricator Hacks . | . . . Repair Station Hacks . | . . . Recycling Unit Hacks . | . . . Scanalyzer . | . . . Garrison Access Hacks . | . . . Unauthorized Hacks 6 | . 5 1 Terminals 4 | . 4 . Track 1 | . 1 . Botnet 2 | . 2 . Detonate 1 | . 1 . Fabricators . | . . . Repair Stations 1 | . 1 . Mechanics 1 | . 1 . Recycling Units . | . . . Scanalyzers 1 | . . 1 Researchers 1 | . . 1 Garrison Access . | . . . Data Cores Recovered 1 | . 1 . Used . | . . . Hacking Detections 7 | . 6 1 Full Trace Events . | . . . Feedback Events . | . . . Feedback Blocked . | . . . Robot Schematics Acquired . | . . . Robots Built . | . . . Authchips . | . . . Time . | . . . Total Robot Build Rating . | . . . Part Schematics Acquired . | . . . Parts Built . | . . . Authchips . | . . . Time . | . . . Total Part Build Rating . | . . . Parts Repaired . | . . . Time . | . . . Parts Recycled . | . . . Recycled Matter . | . . . Retrieved Matter . | . . . Retrieved Components . | . . . Parts Scanalyzed . | . . . Part Schematics Acquired . | . . . Parts Damaged . | . . . Bothacking | -11 -10 -9 ------------ Run | Yrd Mat Mat Used RIF Installer . | . . . Robots Hacked 2 | . 1 1 Non-combat 1 | . 1 . Combat 1 | . . 1 Robot Hacks Applied 2 | . 1 1 parse_system 2 | . 1 1 Relay Couplers Released . | . . . Fabnet Peak Effective % . | . . . Robots Rewired . | . . . Allies Hacked . | . . . Hacks Repelled . | . . . Allies | -11 -10 -9 -------- Run | Yrd Mat Mat Total Allies . | . . . Largest Group . | . . . Highest-Rated Group . | . . . Highest-Rated Ally . | . . . Total Orders . | . . . Ally Attacks . | . . . Total Damage . | . . . Kills . | . . . Allies Corrupted . | . . . Allies Melted . | . . . Intel | -11 -10 -9 ------- Run | Yrd Mat Mat Robot Analysis Total . | . . . Derelict Logs Recovered . | . . . Drone Launches . | . . . Drone Recoveries . | . . . Exploration | -11 -10 -9 ------------- Run | Yrd Mat Mat Turns Passed 917 | 95 718 104 Spaces Moved 683 | 81 519 83 Core 1 | 1 . . Treads 99 | . 99 . Legs . | . . . Wheels 322 | 80 242 . Hover . | . . . Flight 261 | . 178 83 Fastest Speed 50 | 50 100 117 Average Speed 115 | 99 117 117 Slowest Speed 160 | 100 160 117 Overloaded Moves . | . . . Propulsion Burnouts . | . . . Robots Hopped . | . . . Cave-ins Triggered . | . . . Exploration Rate (%) 28 | 4 72 8 Regions Visited 2 Branch Regions . Pre-discovered Areas . | . . . Known Exits Taken . | . . . Unknown Exits Taken 2 | 1 1 . Scrap Searched . | . . . Spaces Dug . | . . . Terrain Destroyed . | . . . Melee . | . . . Projectile . | . . . AOE . | . . . Terrain Rammed . | . . . Walls Destroyed . | . . . Machines Disabled . | . . . Actions | -11 -10 -9 --------- Run | Yrd Mat Mat Total 769 | 92 590 87 Wait 14 | . 14 . Move 681 | 80 518 83 Hop . | . . . Pick Up 16 | 6 10 . Fast Attach 10 | 6 4 . Attach 6 | . 6 . Detach . | . . . Swap 1 | . 1 . Drop 8 | . 8 . Fire 29 | . 27 2 Melee 4 | . 2 2 Ram . | . . . Kick . | . . . Crush . | . . . Escape Stasis . | . . . Rewire . | . . . Trap . | . . . Miscellaneous . | . . . Route ------- -11/Scrapyard -10/Materials (discovered 2 exits: *Mat / [*Min]) -9/Materials History --------- Turn | Location | Event 31 | -11/Scrapyard | Discovered new exit (range 14) 96 | -11/Scrapyard | Entered Materials 256 | -10/Materials | Discovered new exit (range 12) 306 | -10/Materials | Build established: Mutant 408 | -10/Materials | Lost 3 parts (2n1w) 765 | -10/Materials | Discovered new exit (range 16) 814 | -10/Materials | Entered another Materials area 814 | -9/Materials | Evolved 2 slots: Propulsion x1, Utility x1 918 | -9/Materials | Self-destructed Last Messages --------------- Testing... Scanning machine control network... Found 1 applicable machine. IP6CKBCHKD: Neutrino Reactor Infected machine control systems. PARAMETERS=PROPULSION+1,UTILITY+1 LOCATION=UNKNOWN GOAL=ESCAPE 00826_ Connecting with Terminal... 00826_ Current location identified: Materials 00869_ Connecting with Scanalyzer... >>Trojan(Researchers) Trojan loaded successfully. Testing... Researcher tracking enabled and active. 00913_ Jacked Y-45 Defender... >>parse_system Reading system data... 00914_ Lgt. Ion Engine destroyed. 00915_ Jacked Y-45 Defender... Map ----- +----------------------------------------------------+ | ???????????????????????????????????????????? | | ???????????????????????????????????????????? | | ???????????????????????????????????????????? | | ???????????????????????????????????????????? | | ???????????????????????????????????????????? | | ???????????????????????????????????????????? | | ???????????????????????????????????????????? | | ???????????????????????????????????????????? | | ???????????????????????????????????????????? | | ???????????????????????????????????????????? | | ???????????????????????????????????????????? | | ???????????????????????????????????????????? | | ???????????????????????????????????????????? | | ???????????????????????????????????????????? | | ????????????????#??????????????????????????? | | ????????????????# ?????????????????????????? | | ????????????????# ????????????????????????? | | ????????????????# ???????????????????????? | | ???????????????## #?????????#######??????? | | ???????????????# #######+## [ #??????? | | ???????????????+ #?##???? | | ???????????????# T #? ???? | | ???????????????# ## ??? | | ???????????????# ###+###### ## ? | | ??????????????????????# Y #?# ## """ # | | ??????????????????????# @ #?# ## """ # | | ??????????????????????# #?# ## """ # | | ??????????????????????# ### ## # | | ????????????????# #########+## # """ # | | ????????????????# # """ # | | ????????????????# T + """ # | | ????????????????# # # | | ????????????????#############+## # # | | ????????????????????????# ## ######## | | ????????????????????????# "" ## # # | | ????????????????????????# """## + # | | ????????????????????????# S"## # # | | ????????????????????????# [ ## # # | | ????????????????????????# ## # # | | ????????????????????????######### # # | | ????????????????????????????????# # # | | ????????????????????????????????# # # | | ????????????????????????????????# # ] # | | ????????????????????????????????##### # | | ????????????????????????????????????? # | | ????????????????????????????????????? # | | ????????????????????????????????????? # | | ?????????????????????????????????????####### | | ???????????????????????????????????????????? | | ???????????????????????????????????????????? | +----------------------------------------------------+ Best States ------------- Heat Dissipation 28 Energy Generation 10 Energy Capacity 250 Matter Stores 300 Matter Capacity 300 Sight Range 16 Terrain Scan Density 10 ECM Strength 1 Weapon Shielding 33 Evasion (%) 40 Recoil Reduction 2 Item Schematics ----------------- None Robot Schematics ------------------ None Fabricated ------------ Nothing Alien Tech Used ----------------- None Achievements -------------- True Hacker Challenges ------------ None Game ------ Seed AssaultPhasingLaser Manual? 0 Play Time 00:12:04 Cumulative 4.1 hours Start 2024.10.13 @ 14:17:27 End 2024.10.15 @ 15:07:30 Sessions 2 Manual Loads 0 Difficulty Rogue Special Mode None Game No. 13 Rogue 13 Adventurer 0 Explorer 0 Win Type - Total 0 Types 0/0/0/0/0/0/0/0/0 Lore% 4 Gallery% 10 Achievement% 12 Wizard Run 0 Options --------- Layout 1 ASCII 0 Keyboard 0 Movement Arrows Keybinds 0 Fullscreen 1 Font 24/Smallcaps Map View 50x35 Zoom Use 0% Tactical HUD 1 Map Filters NONE Filters NONE Steam 1 RUN: e424ef4f-152e-4398-b197-19797ee57d74